Cogmind - Beta 13 @@@ ROGUE MODE // 2024.04.30 @ 20:45:05 Player: Thqwib Result: Self-destructed Performance ------------- Evolutions (4) 2000 Regions Visited (15) 3000 Robots Destroyed (115) 575 Value Destroyed (5018) 5018 Prototype IDs (31) 620 Alien Tech Used (0) 0 Bonus (3054) 3054 TOTAL SCORE: 14267 Bonus ------- High Alert Combat Kills 217 Follower Combat Kills 617 Entered Garrisons 600 Used RIF Installer 1000 Entered DSFs 500 Aligned with FarCom 300 Friendly Fire -180 Cogmind --------- Core Integrity 50/850 Matter 45/300 Energy 290/290 System Corruption 32% Temperature Cool (12) Movement Core (450) Ox8 Location -6/Garrison Parts ------- > --- POWER (2) -------- Reinforced Deuterium Engine > --- PROPULSION (3) --- (None) > --- UTILITY (7) ------ Advanced Heat Sink Advanced Heat Sink Medium Storage Unit Machine Analyzer > --- WEAPON (3) ------- (None) > --- INVENTORY (10) --- Relay Coupler [NC] (34) Relay Coupler [Heavy] (13) Relay Coupler [Behemoth] (16) Heavy Plasma Cannon Katana Peak State ------------ > --- POWER ------------ Improved Deuterium Engine Particle Reactor > --- PROPULSION ------- Carbon-fiber Leg Carbon-fiber Leg Flexi-carbon Leg > --- UTILITY ---------- Advanced Heat Sink Targeting Computer Phase Shifter Authchip [R/Combat] Relay Coupler [Sentry] Relay Coupler [Sentry] High-powered Tractor Beam > --- WEAPON ----------- Gauss Rifle KE Penetrator Rocket Launcher > --- INVENTORY -------- Wheel Improved Light Armor Plating Relay Coupler [Behemoth] [Rating: 61] Favorites ----------- Power Light Nuclear Core Engine Light Ion Engine Power Core Light Nuclear Core Reactor Particle Reactor Propulsion Carbon-fiber Leg Treads Improved Medium Treads Leg Carbon-fiber Leg Wheel Compact Wheel Hover Unit Gravmag System Flight Unit VTOL Module Utility Medium Storage Unit Device Improved Heat Sink Storage Medium Storage Unit Processor Machine Analyzer Hackware Relay Coupler [Sentry] Protection Layered Light Armor Plating Weapon Advanced Beam Cannon Energy Gun Heavy EM Shotgun Energy Cannon Advanced Beam Cannon Ballistic Gun Gauss Rifle Ballistic Cannon Advanced Assault Cannon Launcher Rocket Launcher Special Weapon Remote Datajack Impact Weapon Mace Slashing Weapon Katana Special Melee Weapon Improved Datajack Build | -11 -10 -10 -9 -9 -9 -8 -8 -8 -8 -7 -7 -6 -6 -6 -6 ------- Run | Yrd Mat Min Mat Min Exi Min Mat Sto Gar Fac DSF Fac Gar Fac Gar Slots Evolved 8 | . . . 2 . . . 2 . . 2 . 2 . . . Power 1 | . . . . . . . 1 . . . . . . . . Propulsion 1 | . . . 1 . . . . . . . . . . . . Utility 5 | . . . 1 . . . 1 . . 2 . 1 . . . Weapon 1 | . . . . . . . . . . . . 1 . . . Parts Attached 212 | . 6 1 10 13 1 1 24 16 21 4 11 27 13 34 30 Power 28 | . 1 1 1 1 . 1 5 1 2 . 1 4 4 4 2 Engine 11 | . . 1 1 1 . 1 . 1 . . 1 1 1 1 2 Core 15 | . 1 . . . . . 5 . 2 . . 3 2 2 . Reactor 2 | . . . . . . . . . . . . . 1 1 . Propulsion 53 | . 2 . 3 2 . . 3 5 2 . 5 8 2 14 7 Treads 2 | . . . . . . . . . . . . . . . 2 Leg 27 | . 2 . 3 2 . . 3 3 2 . 2 2 2 3 3 Wheel 13 | . . . . . . . . . . . . 3 . 8 2 Hover 10 | . . . . . . . . 2 . . 3 2 . 3 . Flight 1 | . . . . . . . . . . . . 1 . . . Utility 59 | . 2 . 3 2 . . 10 5 6 2 1 6 4 8 10 Device 29 | . 1 . 1 1 . . 8 3 2 1 1 2 2 1 6 Storage 3 | . 1 . . . . . 1 . . . . . . 1 . Processor 2 | . . . . . . . . . . . . . 1 1 . Hackware 11 | . . . . . . . . . 3 1 . 4 . 2 1 Protection 14 | . . . 2 1 . . 1 2 1 . . . 1 3 3 Artifact . | . . . . . . . . . . . . . . . . Weapon 72 | . 1 . 3 8 1 . 6 5 11 2 4 9 3 8 11 Energy Gun 17 | . . . 1 2 . . 4 2 2 1 . 2 . . 3 Energy Cannon 15 | . 1 . 1 1 1 . 2 . 2 1 2 1 . 2 1 Ballistic Gun 16 | . . . 1 2 . . . 2 2 . 1 3 2 2 1 Ballistic Cannon 1 | . . . . . . . . . . . . 1 . . . Launcher 13 | . . . . 3 . . . 1 4 . 1 . 1 1 2 Special Weapon 2 | . . . . . . . . . . . . . . 2 . Impact Weapon 1 | . . . . . . . . . . . . . . . 1 Slashing Weapon 5 | . . . . . . . . . . . . 1 . 1 3 Piercing Weapon . | . . . . . . . . . . . . . . . . Special Melee Weapon 2 | . . . . . . . . . 1 . . 1 . . . Unidentified Prototypes 5 | . . . . . . . . 2 . 1 . . . 2 . Corrupted Parts 3 | . . . . . . . . . . . . . 3 . . System Corruption 8 | . . . . . . . . . . . . . 8 . . Parts Lost 57 | . . . . . . . 2 1 3 . 2 19 4 4 22 Power 7 | . . . . . . . 1 . . . 1 2 1 . 2 Propulsion 15 | . . . . . . . . . . . . 7 . 1 7 Utility 17 | . . . . . . . . 1 2 . 1 4 1 2 6 Weapon 18 | . . . . . . . 1 . 1 . . 6 2 1 7 Highest Loss Streak 10 | . . . . . . . 1 1 2 . 2 9 1 3 10 To Critical Strikes . | . . . . . . . . . . . . . . . . Average Slot Usage (%) 94 | . 95 100 99 100 100 100 99 99 99 93 98 73 92 93 84 Engine 5 | . 3 14 11 11 11 11 7 6 3 . 6 3 5 3 2 Core 7 | . 10 . . . . . 10 11 14 15 7 3 3 6 9 Leg 19 | . 28 28 33 33 33 33 27 26 27 23 6 2 18 6 4 Wheel 2 | . . . . . . . . . . . . 3 . 13 11 Hover 1 | . . . . . . . . . . . 15 8 . . . Device 13 | . 10 14 11 11 11 11 18 18 18 11 15 8 18 10 9 Storage 7 | . 14 14 11 11 11 11 9 9 9 7 7 4 . 3 6 Processor 2 | . . . . . . . . . . . . . 5 8 6 Hackware 6 | . . . . . . . . . 1 19 22 19 14 10 7 Protection 5 | . . . 10 11 11 11 9 9 6 . . . 2 6 6 Energy Gun 3 | . . . 9 8 . . 9 4 6 2 . 1 . . 3 Energy Cannon 5 | . 12 14 10 9 11 11 8 9 2 7 7 2 2 1 2 Ballistic Gun 6 | . 15 14 2 1 11 11 . 4 6 4 6 3 7 10 5 Launcher 1 | . . . . 2 . . . . 1 . . . 5 . 1 Naked Turns . | . . . . . . . . . . . . . . . . Heaviest Build 59 | 11 21 19 29 29 28 29 41 37 41 36 43 36 47 54 59 Greatest Support 58 | 20 20 20 30 40 40 40 50 50 50 50 50 48 50 58 42 Greatest Overweight (x) 10 | . 1 . . . . . 1 4 . . 2 5 1 1 10 Average Overweight (x) . | . . . . . . . . . . . . . . . . Largest Inventory Capacity 10 | . 10 10 10 10 10 10 10 10 10 10 10 10 5 10 10 Average Capacity 9 | . 8 10 10 10 10 10 10 10 10 10 10 8 5 8 10 Most Carried 10 | . 8 9 10 10 10 10 10 10 10 10 10 10 5 10 9 Average Carried 7 | . 7 8 9 8 9 9 8 9 9 9 9 7 3 7 7 Final Capacity 10 | 8 10 10 10 10 10 10 10 10 10 10 10 5 5 10 10 Final Carried 10 | 6 8 9 9 9 10 10 10 9 10 10 10 3 5 10 5 Class Distribution -------------------- 52% | Scavenger-Mutant 16% | Mutant 9% | Bothacker-Mutant 7% | Scavenger-Skirmisher 4% | Scavenger-Tank 3% | Scavenger-Gunner Dominant Class ---------------- Mutant | -10/Materials Mutant | -10/Mines Mutant | -9/Materials Scavenger-Mutant | -9/Mines Scavenger-Mutant | -9/Exiles Scavenger-Mutant | -8/Mines Scavenger-Mutant | -8/Materials Scavenger-Mutant | -8/Storage Scavenger-Mutant | -8/Garrison Bothacker-Mutant | -7/Factory Bothacker-Mutant | -7/DSF Bothacker-Mutant | -6/Factory Scavenger-Tank | -6/Garrison Scavenger-Mutant | -6/Factory Scavenger-Mutant | -6/Garrison Resources | -11 -10 -10 -9 -9 -9 -8 -8 -8 -8 -7 -7 -6 -6 -6 -6 ----------- Run | Yrd Mat Min Mat Min Exi Min Mat Sto Gar Fac DSF Fac Gar Fac Gar Matter Collected 3379 | 187 133 25 98 96 . 113 240 239 355 . 70 464 284 381 694 Remotely 1422 | . . . . . . . . . . . . 208 284 381 549 Salvage Created 4857 | . 328 75 436 181 . 38 860 602 387 . 203 529 277 362 579 Parts 261 | . 26 3 21 15 . 2 32 37 21 . 15 25 26 24 14 Haulers Intercepted 9 | . 2 . 2 . . . 2 3 . . . . . . . Recyclers Shooed . | . . . . . . . . . . . . . . . . Parts Field Recycled . | . . . . . . . . . . . . . . . . Retrieved Matter . | . . . . . . . . . . . . . . . . Parts Self-Destructed . | . . . . . . . . . . . . . . . . Prevented . | . . . . . . . . . . . . . . . . Kills | -11 -10 -10 -9 -9 -9 -8 -8 -8 -8 -7 -7 -6 -6 -6 -6 ------- Run | Yrd Mat Min Mat Min Exi Min Mat Sto Gar Fac DSF Fac Gar Fac Gar Combat Hostiles Destroyed 91 | . 7 2 7 8 . 2 12 7 12 . 3 9 10 1 11 Melee 4 | . . . . . . . . . . . . 2 . . 2 Guns 38 | . 2 . 3 3 . 2 8 2 6 . . 4 4 1 3 Cannons 28 | . 5 2 2 2 . . 4 4 . . 1 3 3 . 2 AOE 20 | . . . 1 3 . . . 1 6 . 2 . 3 . 4 Classes Destroyed 15 | . 3 . 1 . . . 4 1 . . 1 2 . . 3 Worker 4 | . . . . . . . 1 . . . . 2 . 1 . Tunneler 1 | . . . 1 . . . . . . . . . . . . Hauler 9 | . 2 . 2 . . . 2 3 . . . . . . . Recycler 6 | . . . . . . . 1 2 . . . 1 . 2 . Operator 1 | . . . . . . . . . . . . 1 . . . Watcher 2 | . . . . . . . 1 . . . . . . 1 . Swarmer 25 | . 3 . . 3 . 2 . . 6 . . 4 7 . . Grunt 42 | . 4 2 7 5 . . 9 2 4 . . 3 . . 6 Brawler 2 | . . . . . . . . . . . . . . . 2 Duelist 1 | . . . . . . . . . . . . . . . 1 Sentry 11 | . . . . . . . 3 4 1 . . 1 1 . 1 Specialist 3 | . . . . . . . . . . . 3 . . . . Hunter 4 | . . . . . . . . 1 2 . . . 1 . . Programmer 3 | . . . . . . . . . . . . 1 1 1 . Behemoth 1 | . . . . . . . . . . . . . . . 1 Best Kill Streak 5 | . 4 2 5 3 . 2 3 3 3 . 2 4 4 2 3 Combat Bots Only 4 | . 3 2 3 3 . 2 3 2 3 . 2 4 4 1 3 Max Kills in Single Turn 3 | . 1 1 2 2 . 1 1 1 3 . 2 1 3 1 3 Gunslinging . | . . . . . . . . . . . . . . . . Exploded 3 | . . . 1 2 . . . 1 3 . 2 . 3 . 3 Melee 1 | . . . . . . . . . . . . 1 . . 1 Uniques/NPCs Destroyed . | . . . . . . . . . . . . . . . . Combat | -11 -10 -10 -9 -9 -9 -8 -8 -8 -8 -7 -7 -6 -6 -6 -6 -------- Run | Yrd Mat Min Mat Min Exi Min Mat Sto Gar Fac DSF Fac Gar Fac Gar Hostile Shots Fired 770 | . 23 8 40 29 . 4 52 38 41 . 38 119 93 17 268 Missed 239 | . 5 4 19 9 . . 13 12 13 . 12 28 32 9 83 Damage Taken 8485 | . 186 64 300 229 . 42 671 404 630 . 411 1518 612 621 2797 Core 1134 | . 72 17 27 40 . . 32 25 81 . 40 205 73 110 412 Absorbed by Shields 50 | . . . . . . . . . . . . . . . 50 Redirected to Shielding 39 | . . . . . . . 30 9 . . . . . . . Core Remaining (%) 83 | 100 . 64 . . . 83 . . 74 . 94 . . . . Volleys Fired 303 | . 20 5 24 12 . 2 44 33 32 . 3 37 21 31 39 Largest 3 | . 2 2 2 2 . 2 2 2 2 . 2 2 2 2 3 Hottest 209 | . 80 80 113 113 . 91 133 118 118 . 124 117 111 108 209 Shots Fired 545 | . 40 10 44 20 . 4 87 65 56 . 6 61 35 42 75 Gun 308 | . 20 5 20 8 . 2 45 32 41 . 3 37 16 25 54 Cannon 203 | . 20 5 24 6 . 2 42 32 8 . 2 24 15 9 14 Launcher 24 | . . . . 6 . . . 1 7 . 1 . 4 . 5 Special 10 | . . . . . . . . . . . . . . 8 2 Kinetic 199 | . 20 5 . 4 . 2 . 21 15 . 1 46 27 25 33 Thermal 203 | . 20 5 24 6 . 2 65 32 8 . 4 7 . . 30 Explosive 24 | . . . . 6 . . . 1 7 . 1 . 4 . 5 Electromagnetic 109 | . . . 20 4 . . 22 11 26 . . 8 4 9 5 Robot Hit Streak 30 | . 13 8 7 4 . 3 30 11 5 . 9 16 11 24 9 Robot Miss Streak 6 | . 2 1 2 2 . 2 2 4 3 . . 6 1 1 5 Penetration Max . | . . . . . . . . . . . . . . . . Secondary Targets 1 | . . . . . . . . . . . . 1 . . . Max Gunslinging Chain 1 | . . . . . . . . . . . . 1 . . . Shots Hit Robots 371 | . 26 7 31 11 . 3 68 46 34 . 5 50 21 26 43 Core Hits 214 | . 12 4 17 16 . 3 31 18 23 . 6 20 12 5 47 Critical Kills 3 | . . . 1 . . . . 1 . . . . . . 1 Critical Parts Destroyed 3 | . . . . . . . . . . . . . . 1 2 Critical Strikes 12 | . . . 1 . . . 1 1 . . . 2 . 1 6 Burn 2 | . . . . . . . 1 . . . . . . . 1 Meltdown 2 | . . . 1 . . . . 1 . . . . . . . Destroy 4 | . . . . . . . . . . . . . . 1 3 Blast 2 | . . . . . . . . . . . . 2 . . . Sever 2 | . . . . . . . . . . . . . . . 2 Melee Attacks 59 | . . . . . . . . . 1 . . 27 . 7 24 Impact 10 | . . . . . . . . . . . . . . . 10 Slashing 35 | . . . . . . . . . . . . 14 . 7 14 Piercing . | . . . . . . . . . . . . . . . . Sneak Attacks 16 | . . . . . . . . . . . . 11 . 5 . Combat Hostiles . | . . . . . . . . . . . . . . . . Follow-up Attacks 1 | . . . . . . . . . . . . . . . 1 Damage Inflicted 9834 | . 408 108 626 624 . 73 1461 1009 1041 . 187 1130 686 652 1829 Guns 3390 | . 146 40 231 75 . 31 646 477 502 . 34 377 159 296 376 Cannons 2889 | . 259 68 360 40 . 41 584 492 88 . 41 356 298 . 262 Explosions 2439 | . . . 32 499 . . 199 40 427 . 104 . 229 . 909 Melee 1026 | . . . . . . . . . . . . 397 . 347 282 Ramming 90 | . 3 . 3 10 . 1 32 . 24 . 8 . . 9 . Kinetic 2244 | . 146 40 . 27 . 31 . 318 179 . . 632 387 296 188 Thermal 3152 | . 259 68 392 40 . 41 1143 532 259 . 75 23 . . 320 Explosive 1997 | . . . . 499 . . . . 256 . 104 . 229 . 909 Electromagnetic 1325 | . . . 231 48 . . 286 159 323 . . 78 70 . 130 Impact . | . . . . . . . . . . . . . . . . Slashing 1026 | . . . . . . . . . . . . 397 . 347 282 Piercing . | . . . . . . . . . . . . . . . . Highest Corruption 32 | . . . . . . . . . 2 . . 12 20 32 32 Average Corruption 19 | . . . . . . . . . 1 . . 5 18 27 32 Corruption Purged . | . . . . . . . . . . . . . . . . Corruption Blocked . | . . . . . . . . . . . . . . . . Effects 155 | . . . . . . . . . 7 . . 5 44 53 46 Message Errors 37 | . . . . . . . . . 2 . . 3 13 10 9 Matter Fused 32 | . . . . . . . . . 2 . . 1 8 9 12 Heat Flow Errors 15 | . . . . . . . . . 1 . . . 5 7 2 Energy Discharges 17 | . . . . . . . . . 1 . . . 5 6 5 Parts Rejected 2 | . . . . . . . . . . . . . 1 . 1 Parts Fused 4 | . . . . . . . . . . . . . 2 2 . Data Loss (minor) 14 | . . . . . . . . . 1 . . . 1 9 3 Data Loss (major) 13 | . . . . . . . . . . . . . 3 5 5 Misfires 2 | . . . . . . . . . . . . . 1 . 1 Alerts 3 | . . . . . . . . . . . . . 1 . 2 Misdirections 7 | . . . . . . . . . . . . . . 3 4 Weapon Failures 9 | . . . . . . . . . . . . 1 4 2 2 Overload Shots . | . . . . . . . . . . . . . . . . Overflow Damage 222 | . . . . . . . 14 . 2 . . 72 21 73 40 Projectiles 4 | . . . . . . . 4 . . . . . . . . Explosions 73 | . . . . . . . 10 . 2 . . . 21 . 40 Melee 145 | . . . . . . . . . . . . 72 . 73 . Knockbacks 4 | . . . . . . . . . . . . 3 1 . . Impact . | . . . . . . . . . . . . . . . . Kinetic 3 | . . . . . . . . . . . . 2 1 . . Secondary 1 | . . . . . . . . . . . . 1 . . . Self-Inflicted Damage 559 | . . . 30 28 . . 46 16 110 . 4 . 31 . 294 Shots 22 | . . . 1 3 . . 1 1 3 . . . 1 . 12 Rammed 2 | . . . . . . . . . . . 2 . . . . Targets Rammed 10 | . 1 . 1 1 . 1 3 . . . 2 . . 1 . Kicked 8 | . 1 . 1 1 . 1 3 . . . . . . 1 . Crushed . | . . . . . . . . . . . . . . . . Highest Temperature 393 | . 186 1 96 60 . . 393 153 111 . . 75 259 233 318 Average Temperature 77 | . 96 1 26 26 . . 112 41 39 . . 24 63 86 108 Received Heat Transfer 2223 | . 75 36 144 87 . . 315 63 135 . 18 258 96 78 918 Effects 3 | . . . . . . . 2 . . . . . . 1 . Shutdowns 2 | . . . . . . . 2 . . . . . . . . Energy Bleed 1 | . . . . . . . . . . . . . . 1 . Siege Activations . | . . . . . . . . . . . . . . . . Robots Corrupted . | . . . . . . . . . . . . . . . . Combat Hostiles . | . . . . . . . . . . . . . . . . Parts Fried 5 | . . . 1 . . . 1 1 2 . . . . . . Impact Corruptions . | . . . . . . . . . . . . . . . . Robots Melted 2 | . . . 1 . . . . 1 . . . . . . . Combat Hostiles 1 | . . . 1 . . . . . . . . . . . . Parts Melted 13 | . 1 . . . . . 8 1 . . . . . . 3 Heat Transferred 5745 | . 555 148 716 74 . 74 2074 877 398 . 148 37 . . 644 Parts Sabotaged . | . . . . . . . . . . . . . . . . Parts Stolen . | . . . . . . . . . . . . . . . . Parts Stripped . | . . . . . . . . . . . . . . . . Power Chain Reactions 9 | . . . 1 . . . 3 2 3 . . . . . . Alert | -11 -10 -10 -9 -9 -9 -8 -8 -8 -8 -7 -7 -6 -6 -6 -6 ------- Run | Yrd Mat Min Mat Min Exi Min Mat Sto Gar Fac DSF Fac Gar Fac Gar Peak Influence 1112 | . 237 157 303 265 . 95 210 394 1112 583 490 290 543 326 509 Initial 583 | . . 92 61 117 . . 37 88 205 583 408 243 98 284 151 Average 319 | . 132 154 160 191 . 94 113 229 713 583 458 194 339 244 276 Maximum Alert Level 4 | . 1 . 1 1 . . 1 1 4 2 2 1 2 1 2 Low Security (%) 39 | . 68 100 62 69 . 100 76 40 . . . 48 25 31 31 Level 1 35 | . 31 . 37 30 . . 23 59 18 . . 51 21 68 62 Level 2 15 | . . . . . . . . . 29 100 100 . 53 . 6 Level 3 6 | . . . . . . . . . 33 . . . . . . Level 4 3 | . . . . . . . . . 18 . . . . . . Level 5 . | . . . . . . . . . . . . . . . . High Security . | . . . . . . . . . . . . . . . . Max Security . | . . . . . . . . . . . . . . . . Squads Dispatched 19 | . 1 . 1 3 . . 3 . . 1 2 4 . 4 . Investigation 8 | . 1 . . 1 . . 2 . . 1 . 2 . 1 . Extermination 2 | . . . . . . . . . . . . 1 . 1 . Reinforcement 7 | . . . 1 1 . . 1 . . . 2 1 . 1 . Assault 2 | . . . . 1 . . . . . . . . . 1 . Garrison . | . . . . . . . . . . . . . . . . Intercept . | . . . . . . . . . . . . . . . . Searches Triggered . | . . . . . . . . . . . . . . . . Construction Impeded 1 | . . . . 1 . . . . . . . . . . . Haulers Reinforced . | . . . . . . . . . . . . . . . . Active Scanning Responses . | . . . . . . . . . . . . . . . . Cargo Convoy Interrupts . | . . . . . . . . . . . . . . . . Stealth | -11 -10 -10 -9 -9 -9 -8 -8 -8 -8 -7 -7 -6 -6 -6 -6 --------- Run | Yrd Mat Min Mat Min Exi Min Mat Sto Gar Fac DSF Fac Gar Fac Gar Distress Signals 3 | . . . . . . . 2 . . . . . . 1 . Communications Jammed . | . . . . . . . . . . . . . . . . Distress Signals . | . . . . . . . . . . . . . . . . Times Spotted 165 | . 11 2 17 10 . 3 16 9 23 . 7 17 11 16 23 Peak Tracking Total 9 | . 3 2 6 4 . 3 4 3 4 . 3 4 4 9 7 Tactical Retreats 11 | . . . . . . . 1 1 . . 1 1 1 1 5 Traps | -11 -10 -10 -9 -9 -9 -8 -8 -8 -8 -7 -7 -6 -6 -6 -6 ------- Run | Yrd Mat Min Mat Min Exi Min Mat Sto Gar Fac DSF Fac Gar Fac Gar Traps Triggered 10 | . . . . . . . 2 . 4 . 1 . . 2 1 Indirectly . | . . . . . . . . . . . . . . . . Trap Hack Attempts 2 | . . . . . . . . . 2 . . . . . . Triggered . | . . . . . . . . . . . . . . . . Disarmed 4 | . . . 4 . . . . . . . . . . . . Reprogrammed 1 | . . . . . . . . . 1 . . . . . . Reused . | . . . . . . . . . . . . . . . . Traps Extracted . | . . . . . . . . . . . . . . . . Installed . | . . . . . . . . . . . . . . . . Triggered . | . . . . . . . . . . . . . . . . Machines | -11 -10 -10 -9 -9 -9 -8 -8 -8 -8 -7 -7 -6 -6 -6 -6 ---------- Run | Yrd Mat Min Mat Min Exi Min Mat Sto Gar Fac DSF Fac Gar Fac Gar Machines Disabled 7 | . . . . . . . . . 4 . . . 1 1 1 Max in Single Turn 1 | . . . . . . . . . 1 . . . 1 1 1 Garrison Access 1 | . . . . . . . . . . . . . . 1 . Garrison Relay 6 | . . . . . . . . . 4 . . . 1 . 1 Machines Repaired . | . . . . . . . . . . . . . . . . Machines Dismantled . | . . . . . . . . . . . . . . . . Machines Sabotaged . | . . . . . . . . . . . . . . . . Overloaded Fab Kills . | . . . . . . . . . . . . . . . . Hacking | -11 -10 -10 -9 -9 -9 -8 -8 -8 -8 -7 -7 -6 -6 -6 -6 --------- Run | Yrd Mat Min Mat Min Exi Min Mat Sto Gar Fac DSF Fac Gar Fac Gar Machines Accessed 29 | . 4 . 2 1 1 . 2 4 4 1 . 3 2 5 . Terminals 22 | . 4 . 2 . . . 2 3 4 1 . 2 2 2 . Fabricators . | . . . . . . . . . . . . . . . . Repair Stations . | . . . . . . . . . . . . . . . . Recycling Units . | . . . . . . . . . . . . . . . . Scanalyzers 1 | . . . . . . . . . . . . . . 1 . Garrison Access 4 | . . . . . . . . 1 . . . 1 . 2 . Total Hacks 76 | . 15 . 12 1 1 . 9 6 6 3 . 8 6 9 . Successful 37 | . 9 . 9 1 1 . 2 4 1 1 . 3 1 5 . Failed 39 | . 6 . 3 . . . 7 2 5 2 . 5 5 4 . Catastrophic 12 | . . . 1 . . . 3 . 3 . . 2 1 2 . Database Lockouts . | . . . . . . . . . . . . . . . . Manual 39 | . 8 . 5 . 1 . 8 2 3 . . 4 6 2 . Terminals 65 | . 15 . 12 . . . 9 5 6 3 . 6 6 3 . Fabricators . | . . . . . . . . . . . . . . . . Repair Stations . | . . . . . . . . . . . . . . . . Recycling Units . | . . . . . . . . . . . . . . . . Scanalyzers 3 | . . . . . . . . . . . . . . 3 . Garrison Access 6 | . . . . . . . . 1 . . . 2 . 3 . Terminal Hacks 20 | . 5 . 7 1 1 . 1 2 1 1 . . . 1 . Prototype ID Bank 2 | . 1 . 1 . . . . . . . . . . . . Open Door 4 | . . . . 1 . . . 2 1 . . . . . . Open DSF 2 | . . . . . . . . . . 1 . . . 1 . Branch Access Points 2 | . 1 . 1 . . . . . . . . . . . . Emergency Access Points 2 | . 1 . . . . . 1 . . . . . . . . Alert Level 1 | . . . 1 . . . . . . . . . . . . Disarm Traps 2 | . . . 2 . . . . . . . . . . . . Registered Components 1 | . . . 1 . . . . . . . . . . . . Registered Prototypes 1 | . 1 . . . . . . . . . . . . . . Zone Layout 2 | . 1 . 1 . . . . . . . . . . . . Derelict Proto ID Bank 1 | . . . . . 1 . . . . . . . . . . Fabricator Hacks . | . . . . . . . . . . . . . . . . Repair Station Hacks . | . . . . . . . . . . . . . . . . Recycling Unit Hacks . | . . . . . . . . . . . . . . . . Scanalyzer 1 | . . . . . . . . . . . . . . 1 . Insert Component 1 | . . . . . . . . . . . . . . 1 . Garrison Access Hacks 6 | . . . . . . . . 1 . . . 2 . 3 . Unlock Access 4 | . . . . . . . . 1 . . . 1 . 2 . Coupler Status 2 | . . . . . . . . . . . . 1 . 1 . Unauthorized Hacks 10 | . 4 . 2 . . . 1 1 . . . 1 1 . . Terminals 10 | . 4 . 2 . . . 1 1 . . . 1 1 . . Botnet 10 | . 4 . 2 . . . 1 1 . . . 1 1 . . Fabricators . | . . . . . . . . . . . . . . . . Repair Stations . | . . . . . . . . . . . . . . . . Recycling Units . | . . . . . . . . . . . . . . . . Scanalyzers . | . . . . . . . . . . . . . . . . Garrison Access . | . . . . . . . . . . . . . . . . Data Cores Recovered . | . . . . . . . . . . . . . . . . Used . | . . . . . . . . . . . . . . . . Hacking Detections 22 | . 4 . 2 . . . 2 2 3 1 . 3 2 3 . Full Trace Events 10 | . 1 . 1 . . . 1 . 1 1 . 2 2 1 . Feedback Events . | . . . . . . . . . . . . . . . . Feedback Blocked . | . . . . . . . . . . . . . . . . Robot Schematics Acquired . | . . . . . . . . . . . . . . . . Robots Built . | . . . . . . . . . . . . . . . . Authchips . | . . . . . . . . . . . . . . . . Time . | . . . . . . . . . . . . . . . . Total Robot Build Rating . | . . . . . . . . . . . . . . . . Part Schematics Acquired . | . . . . . . . . . . . . . . . . Parts Built . | . . . . . . . . . . . . . . . . Authchips . | . . . . . . . . . . . . . . . . Time . | . . . . . . . . . . . . . . . . Total Part Build Rating . | . . . . . . . . . . . . . . . . Parts Repaired . | . . . . . . . . . . . . . . . . Time . | . . . . . . . . . . . . . . . . Parts Recycled . | . . . . . . . . . . . . . . . . Recycled Matter . | . . . . . . . . . . . . . . . . Retrieved Matter . | . . . . . . . . . . . . . . . . Retrieved Components . | . . . . . . . . . . . . . . . . Parts Scanalyzed 1 | . . . . . . . . . . . . . . 1 . Part Schematics Acquired . | . . . . . . . . . . . . . . . . Parts Damaged 1 | . . . . . . . . . . . . . . 1 . Bothacking | -11 -10 -10 -9 -9 -9 -8 -8 -8 -8 -7 -7 -6 -6 -6 -6 ------------ Run | Yrd Mat Min Mat Min Exi Min Mat Sto Gar Fac DSF Fac Gar Fac Gar Used RIF Installer 2 | . . . . . . . . . 1 . . . 1 . . Coupler Efficiency 1 | . . . . . . . . . . . . . 1 . . Robots Hacked 11 | . . . . . . . . . 1 . . 6 . 3 1 Non-combat 5 | . . . . . . . . . . . . 2 . 3 . Combat 6 | . . . . . . . . . 1 . . 4 . . 1 Robot Hacks Applied 18 | . . . . . . . . . 1 . . 11 . 4 2 no_distress 2 | . . . . . . . . . . . . 1 . 1 . start_evac 1 | . . . . . . . . . . . . 1 . . . find_chute 1 | . . . . . . . . . . . . 1 . . . find_fabricator 1 | . . . . . . . . . . . . 1 . . . find_dsf 1 | . . . . . . . . . . . . 1 . . . drop_inventory 1 | . . . . . . . . . . . . 1 . . . locate_stockpiles 1 | . . . . . . . . . . . . 1 . . . find_recycling 1 | . . . . . . . . . . . . . . 1 . ignore_parts 2 | . . . . . . . . . . . . . . 2 . disrupt_area 1 | . . . . . . . . . . . . . . . 1 overwrite_iff 1 | . . . . . . . . . . . . 1 . . . streamctrl_high 1 | . . . . . . . . . . . . 1 . . . formatsys_high 4 | . . . . . . . . . 1 . . 2 . . 1 Relay Couplers Released 27 | . . . . . . . . . 17 . . . 4 1 5 Machine Destruction 27 | . . . . . . . . . 17 . . . 4 1 5 Attached 10 | . . . . . . . . . 3 1 . 3 . 2 1 Fabnet Peak Effective % . | . . . . . . . . . . . . . . . . Robots Rewired 1 | . . . . . . . . . . . . . . . 1 Allies Hacked . | . . . . . . . . . . . . . . . . Hacks Repelled . | . . . . . . . . . . . . . . . . Allies | -11 -10 -10 -9 -9 -9 -8 -8 -8 -8 -7 -7 -6 -6 -6 -6 -------- Run | Yrd Mat Min Mat Min Exi Min Mat Sto Gar Fac DSF Fac Gar Fac Gar Total Allies 20 | . . . . 1 . . . 10 3 . . 4 . . 2 Largest Group 10 | . . . . 1 1 1 1 10 10 2 1 3 . . 1 Highest-Rated Group 173 | . . . . 31 31 31 31 173 173 54 39 78 . . 85 Highest-Rated Ally 85 | . . . . 31 31 31 31 29 39 39 39 32 . . 85 Total Orders . | . . . . . . . . . . . . . . . . Ally Attacks 126 | . . . . 11 . 3 5 20 59 . 10 11 . . 7 Total Damage 1720 | . . . . 108 . 62 64 254 796 . 41 194 . . 201 Kills 24 | . . . . 2 . 3 . 1 14 . . 2 . . 2 Allies Corrupted . | . . . . . . . . . . . . . . . . Allies Melted 1 | . . . . . . . . . . . . . . . 1 Intel | -11 -10 -10 -9 -9 -9 -8 -8 -8 -8 -7 -7 -6 -6 -6 -6 ------- Run | Yrd Mat Min Mat Min Exi Min Mat Sto Gar Fac DSF Fac Gar Fac Gar Robot Analysis Total . | . . . . . . . . . . . . . . . . Derelict Logs Recovered 2 | . . . . 2 . . . . . . . . . . . Drone Launches . | . . . . . . . . . . . . . . . . Drone Recoveries . | . . . . . . . . . . . . . . . . Exploration | -11 -10 -10 -9 -9 -9 -8 -8 -8 -8 -7 -7 -6 -6 -6 -6 ------------- Run | Yrd Mat Min Mat Min Exi Min Mat Sto Gar Fac DSF Fac Gar Fac Gar Turns Passed 8301 | . 332 217 337 550 263 331 620 498 1531 102 178 776 838 925 803 Spaces Moved 4979 | 1 169 167 200 401 212 261 238 226 989 76 123 409 440 630 437 Core 10 | . . . . . . . . . . . . 7 . . 3 Treads 8 | . . . . . . . . . . . . . . . 8 Legs 3807 | 1 169 167 200 401 212 261 238 225 989 76 33 89 440 199 107 Wheels 804 | . . . . . . . . . . . . 54 . 431 319 Hover 326 | . . . . . . . . 1 . . 90 235 . . . Flight 24 | . . . . . . . . . . . . 24 . . . Fastest Speed 52 | 120 120 120 120 120 123 123 123 123 123 123 112 52 120 93 93 Average Speed 122 | 120 138 120 120 121 123 123 133 123 123 123 117 125 128 104 124 Slowest Speed 550 | 120 190 120 120 123 123 123 193 270 123 123 260 435 190 190 550 Overloaded Moves . | . . . . . . . . . . . . . . . . Propulsion Burnouts . | . . . . . . . . . . . . . . . . Robots Hopped . | . . . . . . . . . . . . . . . . Cave-ins Triggered 2 | . . . . . . . . . . . . 1 . 1 . Exploration Rate (%) 40 | 1 27 40 29 84 61 61 30 36 78 3 81 11 48 14 42 Regions Visited 15 Branch Regions 5 Pre-discovered Areas . | . . . . . . . . . . . . . . . . Known Exits Taken 6 | . 1 . 1 . . . . 1 . 1 . 1 . 1 . Unknown Exits Taken 6 | 1 . 1 . 1 1 1 1 . . . . . . . . Scrap Searched 4 | . . . . 3 . 1 . . . . . . . . . Spaces Dug 118 | . . . . . . . . 5 38 . . 11 18 4 42 Terrain Destroyed 296 | . . . 6 53 . . 14 14 55 . 8 17 25 5 99 Melee 10 | . . . . . . . . . . . . 5 . 1 4 Projectile 21 | . . . . . . . 2 . . . . 12 1 4 2 AOE 265 | . . . 6 53 . . 12 14 55 . 8 . 24 . 93 Terrain Rammed 2 | . . . . . . . . . 2 . . . . . . Walls Destroyed . | . . . . . . . . . . . . . . . . Machines Disabled 1 | . . . . . . . . . 1 . . . . . . Actions | -11 -10 -10 -9 -9 -9 -8 -8 -8 -8 -7 -7 -6 -6 -6 -6 --------- Run | Yrd Mat Min Mat Min Exi Min Mat Sto Gar Fac DSF Fac Gar Fac Gar Total 6559 | . 229 173 253 440 213 267 449 383 1243 85 151 579 671 850 573 Wait 761 | . 19 . 8 4 . . 120 83 160 . . 67 185 104 11 Move 4963 | . 168 166 199 400 211 260 237 225 987 75 123 407 438 630 437 Hop . | . . . . . . . . . . . . . . . . Pick Up 76 | . 6 1 3 3 1 1 8 8 9 3 2 6 7 14 4 Fast Attach 70 | . 2 . 3 1 . . 2 5 2 1 7 13 7 14 13 Attach 49 | . . . 1 . . . 4 4 4 2 . 14 2 8 10 Detach 17 | . . . . . . . . . 1 1 . 4 . 7 4 Swap 93 | . 4 1 6 12 1 1 18 7 15 1 4 . 4 12 7 Drop 114 | . 9 . 8 7 . 2 13 15 8 2 11 2 7 22 8 Fire 303 | . 20 5 24 12 . 2 44 33 32 . 3 37 21 31 39 Melee 58 | . . . . . . . . . 1 . . 27 . 7 23 Ram 3 | . . . . . . . . . 2 . 1 . . . . Kick 8 | . 1 . 1 1 . 1 3 . . . . . . 1 . Crush . | . . . . . . . . . . . . . . . . Escape Stasis 25 | . . . . . . . . . 20 . . 1 . . 4 Rewire 17 | . . . . . . . . 3 . . . 1 . . 13 Trap 2 | . . . . . . . . . 2 . . . . . . Miscellaneous . | . . . . . . . . . . . . . . . . Route ------- -11/Scrapyard -10/Materials -10/Mines -9/Materials (discovered 2 exits: *Min x2) -9/Mines (discovered 2 exits: *Mat / *Exi) -9/Exiles -8/Mines -8/Materials (discovered 2 exits: Fac / *Sto) -8/Storage -8/Garrison (discovered 3 exits: *Fac x3) -7/Factory -7/DSF -6/Factory -6/Garrison -6/Factory -6/Garrison History --------- Turn | Location | Event 1 | -11/Scrapyard | Discovered new exit (range 0) 1 | -11/Scrapyard | Entered Materials 196 | -10/Materials | Identified exit to Mines 316 | -10/Materials | Build established: Mutant 333 | -10/Materials | Entered Mines 375 | -10/Mines | Met a Derelict bent on vengeance 530 | -10/Mines | Discovered new exit (range 7) 544 | -10/Mines | YI-UF0 nonchalantly dropped a Grenade Launcher on the ground 550 | -10/Mines | Entered Materials 550 | -9/Materials | Evolved 2 slots: Propulsion x1, Utility x1 657 | -9/Materials | Identified exit to Mines 887 | -9/Materials | Entered Mines 924 | -9/Mines | Learned location of 1 exit from Materials 1117 | -9/Mines | Build established: Scavenger-Mutant 1160 | -9/Mines | Met a Derelict shopkeep closing up shop 1303 | -9/Mines | Met a Derelict testing a Signal Generator 1355 | -9/Mines | Discovered new exit (range 5) 1389 | -9/Mines | Learned Materials stockpile data 1431 | -9/Mines | Deemed a non-threat by the Exiles lab entrance 1432 | -9/Mines | Discovered new exit (range 5) 1437 | -9/Mines | Entered Exiles 1437 | -9/Exiles | Accompanied by 1 ally 1469 | -9/Exiles | Met 8R-AWN 1491 | -9/Exiles | Met EX-HEX 1523 | -9/Exiles | Met EX-BIN 1539 | -9/Exiles | Aligned with FarCom system 1540 | -9/Exiles | Given EX-Vault access code 1569 | -9/Exiles | Opened EX-Vault 1578 | -9/Exiles | Found Cloak of Protection 1605 | -9/Exiles | Warned to stay clear of 0b10 Research branches 1621 | -9/Exiles | Exiles lab attacked by MAIN.C 1690 | -9/Exiles | Discovered new exit (range 10) 1700 | -9/Exiles | Left Exiles lab with Cloak of Protection 1700 | -9/Exiles | Entered Mines 1700 | -8/Mines | Accompanied by 1 ally 2015 | -8/Mines | Discovered new exit (range 14) 2031 | -8/Mines | Entered Materials 2031 | -8/Materials | Accompanied by 1 ally 2031 | -8/Materials | Evolved 2 slots: Power x1, Utility x1 2032 | -8/Materials | Identified exit to Factory 2540 | -8/Materials | Discovered new exit (range 8) 2651 | -8/Materials | Entered Storage 2975 | -8/Storage | Assisted by bots powering up and referring to "LRC-V3" 3122 | -8/Storage | Identified exit to Garrison 3149 | -8/Storage | Entered Garrison 3149 | -8/Garrison | Accompanied by 10 allies 3183 | -8/Garrison | Triggered checkpoint 3242 | -8/Garrison | Lost 6 allies 3325 | -8/Garrison | Rescued a captive Derelict 3326 | -8/Garrison | Rescued a captive Derelict 3339 | -8/Garrison | Lost 3 allies 3421 | -8/Garrison | Triggered checkpoint 3472 | -8/Garrison | Discovered exit to Factory (range 13) 3521 | -8/Garrison | Triggered checkpoint 3537 | -8/Garrison | Garrison Relay disabled 3771 | -8/Garrison | Triggered checkpoint 3805 | -8/Garrison | Triggered checkpoint 3845 | -8/Garrison | Discovered exit to Factory (range 12) 3936 | -8/Garrison | Garrison Relay disabled 4188 | -8/Garrison | Discovered exit to Factory (range 12) 4239 | -8/Garrison | Triggered checkpoint 4274 | -8/Garrison | Installed Relay Interface Framework 4342 | -8/Garrison | Garrison Relay disabled 4399 | -8/Garrison | Triggered checkpoint 4680 | -8/Garrison | Entered Factory 4680 | -7/Factory | Accompanied by 2 allies 4680 | -7/Factory | Evolved 2 slots: Utility x2 4780 | -7/Factory | Build established: Bothacker-Mutant 4782 | -7/Factory | Identified exit to DSF 4782 | -7/Factory | Entered DSF 4782 | -7/DSF | Accompanied by 1 ally 4824 | -7/DSF | Additional patrols routed to DSF 4948 | -7/DSF | Discovered new exit (range 11) 4960 | -7/DSF | Entered Factory 4960 | -6/Factory | Evolved 2 slots: Utility x1, Weapon x1 5348 | -6/Factory | Lost 9 parts (1p4n1u3w) 5591 | -6/Factory | Lost 6 parts (1p3n1u1w) 5662 | -6/Factory | Crushed by falling debris 5663 | -6/Factory | System corruption reached 10% 5693 | -6/Factory | Lost 3 parts (2u1w) 5725 | -6/Factory | Identified exit to Garrison 5736 | -6/Factory | Entered Garrison 5803 | -6/Garrison | Expanded RIF knowledge: Coupler Efficiency 6012 | -6/Garrison | Triggered checkpoint 6233 | -6/Garrison | Garrison Relay disabled 6493 | -6/Garrison | Build established: Scavenger-Tank 6534 | -6/Garrison | Spotted B-75 Beast 6562 | -6/Garrison | Discovered new exit (range 10) 6574 | -6/Garrison | Entered Factory 7045 | -6/Factory | Build established: Scavenger-Mutant 7145 | -6/Factory | Identified exit to Garrison 7176 | -6/Factory | Crushed by falling debris 7176 | -6/Factory | System corruption reached 30% 7207 | -6/Factory | Lost 3 parts (1n2u) 7286 | -6/Factory | Found Prototype Launcher 7286 | -6/Factory | Identified Scatter Rocket Array 7499 | -6/Factory | Identified exit to Garrison 7499 | -6/Factory | Entered Garrison 7529 | -6/Garrison | Triggered checkpoint 7626 | -6/Garrison | Spotted B-75 Beast 7658 | -6/Garrison | Rewired B-75 Beast 7785 | -6/Garrison | Garrison Relay disabled 7912 | -6/Garrison | Core integrity fell below 50% 8020 | -6/Garrison | Lost 10 parts (1p3n4u2w) 8059 | -6/Garrison | Triggered checkpoint 8059 | -6/Garrison | Spotted B-75 Beast 8065 | -6/Garrison | Triggered checkpoint 8160 | -6/Garrison | Core integrity fell below 20% 8162 | -6/Garrison | Destroyed B-75 Beast 8302 | -6/Garrison | Self-destructed Last Messages --------------- 08252_ Adv. Heat Sink melted. 08252_ G-50 Soldier destroyed. Garrison Door activated. 08258_ Carbon-fiber Leg destroyed. 08267_ System corrupted: Energy discharge (-158). 08283_ Imp. Deuterium Engine destroyed. 08283_ Destroyed Imp. Deuterium Engine. 08283_ G-50 Soldier destroyed. 08283_ Scatter Rocket Array destroyed. 08283_ Destroyed Scatter Rocket Array. 08283_ B-48 Gladiator destroyed. 08284_ O/2CZ,QEXI/YDGACMP6<8L 08286_ Axe destroyed. 08288_ Lyr. Light Armor Plating destroyed. 08288_ Imp. Medium Treads destroyed. 08299_ System corrupted: Substantial component data lost. 08302_ Hvy. Laser destroyed. 08302_ Carbon-fiber Leg destroyed. Map ----- +----------------------------------------------------+ | ?????????????????????????????????????????????????? | | ????????????????????????????????????????????????## | | ????????????????????????????????????????????? ?? | | ????????????????????????????????????????????? | | ????????????????????????????????????????????? = | | ??????????????????????????????????????? ??? """ | | ??????????????????????????????????????# ??? """ | | ??????????????????????????????????????# "?# ### | | ??????????????????????????????????????#* | | ??????????????????????????????????????# | | ??????????????????????????????????????# ""## | | ??????????????????????????????????????# ""# | | ??????????????????????????????????????# ""## | | ??????????????????????????????????????# | | ??????????????????????????????????????# | | ??????????????????????????????????????# ""#" | | ??????????????????????????????????????# ""#" | | ??????????????????????????????????????# """" | | ??????????????????????????????????????# | | ??????????????????????????????????????# | | ??????????????????????????????????????# | | ??????????????????????????????????????## ######## | | ???????????##?????????????????????????## ##### | | ???????????? ##############??#??## | | ???????????????# # #??#" | | ???????????????# @ Y #??## | | ?????????????????############Y% #???#* ##### # | | ????????????????????????????# ##### ### | | ???????????????????????????? # ##"#"^^ "#### | | ????????g?????????????????? # ##= " " | | ????????g?????????????????# ? ## ## ####### | | ??????????????????????????# # ####!## #?????# | | ??????????????????????????### # ## #?????# | | ???????????????????????????## # ##! #?????# | | ???????????????????????????# * = #?????# | | ???????????????????????????# g #????? | | ???????????????????????????# " ? | | ???????????????????????????# ## # ######## | | ???????????????????????????# # # #??????? | | ?????????????????????????? ?????? | | ?????????????????????????# #????? | | ?????????????????????????# ?#????? | | ?????????????????????????# ?????? | | ?????????????????????????### # % # ###????? | | ???????????????????????????# # # #??????? | | ???????????????????????????# ? ??????? | | ???????????????????????????# ??????? | | ???????????????????????????# ?????????? | | ???????????????????????????## ## #???????????? | | ????????????????????????????????? ?????????????? | +----------------------------------------------------+ Best States ------------- Heat Dissipation 75 Coolant Potential 65 Energy Generation 34 Energy Capacity 530 Matter Stores 300 Matter Capacity 300 Sight Range 16 Robot Scan Range 15 Terrain Scan Density 10 Cloak Strength 5 Base Temperature (-) 100 Armor Coverage 375 Power Shielding 66 Phase Shifting 5 Evasion (%) 60 Targeting Accuracy 5 Recoil Reduction 1 Particle Charging 15 Relay Coupler Types 4 Relay Coupler Value 85 Authchip Count 1 Item Schematics ----------------- None Robot Schematics ------------------ None Fabricated ------------ Nothing Alien Tech Used ----------------- None Achievements -------------- Hehehe Maybe Next Time I'll Detach My Launcher Challenges ------------ None Game ------ Seed BiocellGuidancePick Manual? 0 Play Time 02:01:16 Cumulative 39.4 hours Start 2024.04.30 @ 17:54:06 End 2024.04.30 @ 20:45:05 Sessions 1 Manual Loads 0 Difficulty Rogue Special Mode None Game No. 27 Rogue 27 Adventurer 0 Explorer 0 Win Type - Total 0 Types 0/0/0/0/0/0/0/0/0 Lore% 21 Gallery% 37 Achievement% 28 Wizard Run 0 Options --------- Layout 2 ASCII 0 Keyboard 0 Movement Arrows Keybinds 0 Fullscreen 2 Font 24/Crisp Map View 50x44 Zoom Use 0% Tactical HUD 1 Map Filters NONE Filters NONE Steam 0 RUN: e6492644-c0bd-432f-981f-69655030ca87